bitfinex/quotes_BTCUSD_20260117
["timestamp","ask_amount","ask_price","bid_price","bid_amount"]
[1768677327524,0.01048745,95352.0,95349.0,0.12717393]
[1768677327782,0.0629248,95352.0,95349.0,0.12717393]
[1768677329246,0.06292496,95352.0,95349.0,0.12717393]
[1768677330354,0.05243784,95351.0,95349.0,0.12717393]
[1768677330532,0.01048745,95352.0,95349.0,0.12395401]
[1768677330750,0.01048778,95349.0,95342.0,0.13756855]
[1768677330937,0.01048789,95348.0,95345.0,0.01048822]
[1768677331943,0.01048778,95349.0,95345.0,0.01048822]
[1768677332965,0.01048789,95348.0,95345.0,0.01048822]
[1768677333628,0.010488,95347.0,95344.0,0.01117844]
[1768677333836,0.01041834,95348.0,95344.0,0.01117844]
[1768677334859,0.01041834,95348.0,95344.0,0.06362007]
[1768677337217,0.010488,95347.0,95344.0,0.00069011]
[1768677337422,0.01048888,95339.0,95334.0,0.0004]
[1768677337568,0.01041933,95339.0,95336.0,0.00044719]
[1768677337979,0.01041933,95339.0,95336.0,0.0109364]
[1768677338141,0.06293201,95341.0,95336.0,0.0109364]
[1768677338341,0.01048866,95341.0,95336.0,0.0109364]
[1768677338593,0.01048866,95341.0,95337.0,0.0104891]
[1768677338765,0.01048877,95340.0,95337.0,0.0104891]
[1768677339534,0.01048877,95340.0,95336.0,0.06338248]
[1768677339535,0.01048877,95340.0,95336.0,0.0109364]
[1768677339746,0.01048888,95339.0,95336.0,0.00044719]
[1768677340753,0.05244551,95338.0,95336.0,0.00044719]
[1768677340875,0.05244553,95337.0,95336.0,0.00044719]
[1768677341077,0.0524452,95338.0,95336.0,0.00044719]
[1768677341838,0.05244553,95337.0,95336.0,0.00044719]
[1768677342075,0.05244608,95336.0,95335.0,1e-08]
[1768677342290,0.05244883,95331.0,95330.0,1e-08]
[1768677342481,0.10242612,95334.0,95330.0,1e-08]
[1768677342482,0.05244828,95332.0,95330.0,1e-08]
[1768677342935,0.15487405,95333.0,95330.0,1e-08]
[1768677343145,0.01089009,95332.0,95330.0,1e-08]
[1768677344102,0.05244883,95331.0,95330.0,1e-08]
[1768677345938,0.05244938,95330.0,95329.0,1e-08]
[1768677347509,0.05244883,95331.0,95329.0,1e-08]
[1768677347915,0.05244938,95330.0,95329.0,1e-08]
[1768677348155,0.05244883,95331.0,95329.0,1e-08]
[1768677348376,0.05244938,95330.0,95329.0,1e-08]
[1768677349143,0.05244883,95331.0,95329.0,1e-08]
[1768677349351,0.07382911,95332.0,95329.0,1e-08]
[1768677349352,0.05244938,95330.0,95329.0,1e-08]
[1768677350293,0.06293902,95332.0,95329.0,1e-08]
[1768677350461,0.0108902,95331.0,95329.0,1e-08]
[1768677351276,0.06333903,95331.0,95329.0,1e-08]
[1768677351635,0.01048943,95334.0,95329.0,1e-08]
[1768677351636,0.06165401,95334.0,95333.0,0.06293727]
[1768677351818,0.06165401,95334.0,95333.0,0.01048954]
[1768677352028,0.06156331,95334.0,95333.0,0.01048954]
[1768677352797,0.06156331,95334.0,95333.0,0.06293727]
[1768677353045,0.06156331,95334.0,95333.0,0.01048954]
[1768677353794,0.0127591,95334.0,95333.0,0.01048954]
[1768677353988,0.0127591,95334.0,95333.0,0.06293727]
[1768677354921,0.0127591,95334.0,95333.0,0.01048954]
[1768677355129,0.01053638,95336.0,95332.0,0.06293748]
[1768677355362,4.717e-05,95336.0,95333.0,0.06293724]
[1768677355537,0.0127591,95335.0,95333.0,0.01048954]
[1768677355714,0.0127591,95335.0,95331.0,0.01048976]
[1768677357128,0.0127591,95335.0,95333.0,0.05244773]
[1768677357336,0.0127591,95335.0,95332.0,0.06293786]
[1768677358161,0.0127591,95335.0,95334.0,0.05244718]
[1768677358867,0.0127591,95335.0,95332.0,0.06293786]
[1768677359821,0.0127591,95335.0,95332.0,0.01048965]
[1768677360936,4.717e-05,95336.0,95333.0,0.0629372]
[1768677362523,4.717e-05,95336.0,95333.0,0.01048954]
[1768677362883,4.717e-05,95336.0,95333.0,0.06293685]
[1768677363703,4.717e-05,95336.0,95333.0,0.01048954]
[1768677363926,4.717e-05,95336.0,95334.0,0.05244667]
[1768677364366,0.086158,95357.0,95343.0,0.05244183]
[1768677364539,0.010488,95347.0,95343.0,0.01048844]
[1768677365848,0.06292815,95347.0,95343.0,0.01048844]
[1768677366062,0.06292909,95346.0,95339.0,0.10092975]
[1768677366428,0.06292909,95346.0,95340.0,0.05244335]
[1768677367314,0.06292909,95346.0,95341.0,0.01048866]
[1768677367315,0.01048822,95345.0,95341.0,0.01048866]
[1768677368332,0.06292942,95345.0,95341.0,0.01048866]
[1768677369505,0.01048822,95345.0,95341.0,0.01048866]
[1768677370057,0.01048822,95345.0,95341.0,0.06293197]
[1768677372341,0.01048811,95346.0,95342.0,0.06293128]
[1768677372476,0.01048811,95346.0,95342.0,0.01048855]
[1768677375581,0.0103974,95346.0,95342.0,0.01048855]
[1768677376282,0.01048822,95345.0,95342.0,0.01048855]
[1768677380252,0.0103974,95346.0,95343.0,0.01048844]
[1768677380838,0.01048822,95345.0,95342.0,0.01048855]
[1768677382446,0.0103974,95346.0,95342.0,0.06293128]
[1768677382650,0.0628383,95346.0,95342.0,0.01048855]
[1768677384292,0.01048822,95345.0,95342.0,0.01048855]
[1768677386707,0.01048822,95345.0,95342.0,0.0096794]
[1768677387265,0.01048822,95345.0,95341.0,0.01048866]
[1768677388712,0.01048822,95345.0,95341.0,0.06293185]
[1768677388909,0.01048822,95345.0,95341.0,0.01048866]
[1768677389272,0.01048822,95345.0,95342.0,0.01048855]
[1768677389471,0.06292938,95345.0,95342.0,0.01048855]
[1768677389787,0.01048822,95345.0,95342.0,0.01048855]
[1768677391411,0.01048822,95345.0,95341.0,0.06293191]
[1768677391858,0.0103974,95346.0,95342.0,0.06293108]
[1768677392412,0.0103974,95346.0,95342.0,0.01048855]
[1768677392805,0.01048822,95345.0,95342.0,0.01048855]
[1768677393678,0.0103974,95346.0,95342.0,0.01048855]
[1768677394689,0.010488,95347.0,95344.0,0.01048833]
[1768677395572,0.010488,95347.0,95342.0,0.01048855]
[1768677395573,0.06292869,95346.0,95342.0,0.01048855]
[1768677395893,0.01048811,95346.0,95342.0,0.01048855]
[1768677397836,0.01048811,95346.0,95342.0,0.06293122]
[1768677398197,0.0004853,95354.0,95346.0,0.02048811]
[1768677398426,0.0004853,95354.0,95347.0,0.03773529]
[1768677398611,0.0004853,95354.0,95351.0,0.06292533]
[1768677398811,0.0004853,95354.0,95352.0,0.05243728]
[1768677399204,0.0004853,95354.0,95351.0,0.01048756]
[1768677400596,0.0001576,95358.0,95353.0,0.05243673]
[1768677400793,0.00024673,95358.0,95354.0,0.05243585]
[1768677401012,0.00024673,95358.0,95355.0,0.01048712]
[1768677401214,0.00024673,95358.0,95356.0,0.05243497]
[1768677401609,0.00024673,95358.0,95355.0,0.01048712]
[1768677402875,0.00024673,95358.0,95355.0,0.06292257]
[1768677403651,0.00024673,95358.0,95354.0,0.01048723]
[1768677403853,0.00024673,95358.0,95355.0,0.01048712]
[1768677404460,0.00024673,95358.0,95355.0,0.06292254]
[1768677404662,0.00024673,95358.0,95355.0,0.01048712]
[1768677405658,0.01073352,95358.0,95355.0,0.01048712]
[1768677406674,0.01073352,95358.0,95354.0,0.01048723]
[1768677406880,0.00024673,95358.0,95355.0,0.01048712]
[1768677411745,0.00024673,95358.0,95355.0,0.06292269]
[1768677412991,0.00024673,95358.0,95355.0,0.05243557]
[1768677413217,0.00024673,95358.0,95355.0,0.06272753]
[1768677415459,0.00024673,95358.0,95355.0,0.06253238]
[1768677415889,0.01073352,95358.0,95354.0,0.06292337]
[1768677416166,0.01073352,95358.0,95355.0,0.01048712]
[1768677416605,0.06292143,95357.0,95352.0,0.06292448]
[1768677418220,0.01048701,95356.0,95353.0,0.01048734]
[1768677419000,0.06292307,95355.0,95351.0,0.02829193]
[1768677419235,0.01048701,95356.0,95352.0,0.01048745]
[1768677419471,0.01048712,95355.0,95351.0,0.03877949]
[1768677419734,0.0629239,95354.0,95351.0,0.02829193]
[1768677419968,0.01048745,95352.0,95344.0,0.01097365]
[1768677420195,0.01048745,95352.0,95346.0,0.01048811]
[1768677420196,0.01048778,95349.0,95346.0,0.01048811]
[1768677420650,0.06292542,95351.0,95347.0,0.010488]
[1768677420875,0.01048756,95351.0,95348.0,0.01048789]
[1768677421101,0.01048745,95352.0,95349.0,0.01048778]
[1768677422149,0.01048756,95351.0,95346.0,0.01048811]
[1768677422588,0.01048778,95349.0,95346.0,0.01048811]
[1768677422765,0.01048767,95350.0,95347.0,0.010488]
[1768677423389,0.01048756,95351.0,95347.0,0.06292798]
[1768677423948,0.06292376,95354.0,95348.0,0.01048789]
[1768677424156,0.01048734,95353.0,95346.0,0.01048811]
[1768677424327,0.05243783,95351.0,95346.0,0.01048811]
[1768677424469,0.0524374,95352.0,95346.0,0.06292867]
[1768677425279,0.01048767,95350.0,95347.0,0.010488]
[1768677425718,0.01048756,95351.0,95348.0,0.01048789]
[1768677427316,0.01048745,95352.0,95348.0,0.06292733]
[1768677427521,0.01048745,95352.0,95349.0,0.01048778]
[1768677428520,0.01048756,95351.0,95347.0,0.04822329]
[1768677429396,0.06292653,95350.0,95347.0,0.03773529]
[1768677429537,0.06292653,95350.0,95347.0,0.03754013]
[1768677429957,0.01048778,95349.0,95346.0,0.01048811]
[1768677430978,0.01048789,95348.0,95345.0,0.05645178]
[1768677431941,0.06292742,95348.0,95345.0,0.05645178]
[1768677432136,0.06292742,95348.0,95345.0,0.05625661]
[1768677432294,0.01048789,95348.0,95344.0,0.06723026]
[1768677432812,0.01048789,95348.0,95344.0,0.11967188]
[1768677433045,0.06292743,95348.0,95344.0,0.06723026]
[1768677433440,0.01048789,95348.0,95344.0,0.06723026]
[1768677433733,0.010488,95347.0,95344.0,0.06723026]
[1768677433900,0.01048811,95346.0,95342.0,0.01048855]
[1768677434109,0.06292881,95346.0,95342.0,0.01048855]
[1768677434855,0.01048811,95346.0,95342.0,0.01048855]
[1768677435388,0.01048811,95346.0,95342.0,0.06293125]
[1768677437566,0.01048811,95346.0,95342.0,0.01048855]
[1768677440098,0.01048811,95346.0,95342.0,0.06293132]
[1768677440317,0.01048811,95346.0,95342.0,0.01048855]
[1768677441033,0.01048811,95346.0,95342.0,0.06293109]
[1768677441234,0.01048811,95346.0,95343.0,0.01029327]
[1768677441454,0.01048811,95346.0,95342.0,0.01048855]
[1768677442025,0.0629287,95346.0,95342.0,0.01048855]
[1768677442678,0.06292952,95345.0,95341.0,0.0301295]
[1768677442999,0.01048811,95346.0,95341.0,0.0301295]
[1768677444010,0.01048811,95346.0,95341.0,0.08257242]
[1768677444210,0.01048822,95345.0,95342.0,0.01048855]
[1768677445790,0.01048822,95345.0,95341.0,0.0301295]
[1768677446547,0.01048822,95345.0,95340.0,0.06293262]
[1768677446548,0.05244223,95343.0,95338.0,0.13760899]
[1768677446954,0.05244295,95342.0,95338.0,0.13760899]
[1768677447174,0.05244226,95343.0,95338.0,0.13760899]
[1768677447801,0.01048833,95344.0,95339.0,0.01048888]
[1768677447981,0.01048833,95344.0,95339.0,0.06293291]
[1768677448412,0.06293004,95344.0,95339.0,0.06293291]
[1768677449246,0.06293004,95344.0,95340.0,0.01048877]
[1768677449877,0.01048833,95344.0,95340.0,0.01048877]
[1768677451803,0.01048833,95344.0,95340.0,0.06293262]
[1768677452005,0.01048833,95344.0,95340.0,0.01048877]
[1768677453071,0.06293019,95344.0,95340.0,0.01048877]
[1768677453266,0.01048833,95344.0,95340.0,0.01048877]
[1768677453785,0.01048844,95343.0,95339.0,0.01048888]
[1768677453930,0.01048844,95343.0,95339.0,0.06293324]
[1768677454360,0.01048833,95344.0,95340.0,0.01048877]
[1768677455353,0.01048833,95344.0,95340.0,0.06293247]
[1768677455990,0.01048833,95344.0,95341.0,0.01048866]
[1768677460913,0.01048822,95345.0,95341.0,0.01048866]
[1768677461060,0.06292872,95346.0,95342.0,0.01048855]
[1768677461061,0.01048811,95346.0,95342.0,0.01048855]
[1768677461263,0.01048811,95346.0,95345.0,0.03774023]
[1768677462321,0.06292739,95348.0,95345.0,0.03774023]
[1768677463110,0.01048789,95348.0,95345.0,0.03774023]
[1768677466442,0.01048789,95348.0,95346.0,0.03774023]
[1768677469462,0.01048778,95349.0,95346.0,0.03774023]
[1768677470221,0.06292686,95349.0,95346.0,0.03774023]
[1768677470467,0.01048778,95349.0,95346.0,0.03774023]
[1768677470988,0.01048822,95345.0,95342.0,0.01048855]
[1768677474775,0.06292845,95347.0,95343.0,0.01048844]
[1768677474977,0.06292869,95346.0,95341.0,0.01048866]
[1768677475716,0.06292869,95346.0,95341.0,0.06293189]
[1768677476617,0.01048811,95346.0,95342.0,0.01048855]
[1768677477565,0.010488,95347.0,95343.0,0.06293051]
[1768677479277,0.010488,95347.0,95344.0,0.01048833]
[1768677479515,0.010488,95347.0,95343.0,0.01048844]
[1768677480528,0.010488,95347.0,95343.0,0.06293054]
[1768677481218,0.010488,95347.0,95344.0,0.01048833]
[1768677481424,0.01048789,95348.0,95344.0,0.06292997]
[1768677482535,0.010488,95347.0,95342.0,0.01048855]
[1768677483449,0.010488,95347.0,95343.0,0.01048844]
[1768677483673,0.01048811,95346.0,95343.0,0.01048844]
[1768677484102,0.01048822,95345.0,95342.0,0.01048855]
[1768677484744,0.01048811,95346.0,95343.0,0.01048844]
[1768677484959,0.01048811,95346.0,95342.0,0.01048855]
[1768677485167,0.0629287,95346.0,95341.0,0.06709987]
[1768677486012,0.01048811,95346.0,95342.0,0.01048855]
[1768677486441,0.06292922,95346.0,95342.0,0.01048855]
[1768677486655,0.010488,95347.0,95343.0,0.01048844]
[1768677486875,0.01048789,95348.0,95343.0,0.06293028]
[1768677488386,0.01048789,95348.0,95344.0,0.01048833]
[1768677490604,0.06292742,95348.0,95344.0,0.01048833]
[1768677490820,0.010488,95347.0,95342.0,0.01048855]
[1768677491031,0.0004853,95354.0,95344.0,0.01048833]
[1768677491510,0.0004853,95354.0,95352.0,0.05243708]
[1768677491722,0.01073352,95358.0,95354.0,0.01048723]
[1768677491939,0.0104869,95357.0,95352.0,0.01048745]
[1768677492150,0.06292144,95357.0,95352.0,0.01048745]
[1768677492386,0.06292144,95357.0,95354.0,0.02831196]
[1768677492596,0.01048723,95354.0,95353.0,0.02831184]
[1768677492804,0.06292341,95354.0,95353.0,0.02831184]
[1768677493021,0.01048767,95350.0,95344.0,0.01048833]
[1768677493257,0.05243918,95349.0,95344.0,0.01048833]
[1768677493728,0.0629261,95350.0,95344.0,0.06292987]
[1768677493954,0.06292614,95350.0,95344.0,0.06292992]
[1768677494419,0.01048789,95348.0,95345.0,0.13760822]
[1768677495589,0.01048789,95348.0,95345.0,0.12712]
[1768677496024,0.01048789,95348.0,95344.0,0.06292992]
[1768677496456,0.01048789,95348.0,95344.0,0.01048833]
[1768677496990,0.01048789,95348.0,95345.0,0.01048822]
[1768677497686,0.01048789,95348.0,95344.0,0.01097366]
[1768677498197,0.010488,95347.0,95344.0,0.01097366]
[1768677499086,0.010488,95347.0,95344.0,0.00048533]
[1768677500923,0.06292812,95347.0,95344.0,0.00048533]
[1768677501380,0.05244098,95346.0,95344.0,0.00048533]
[1768677501793,0.010488,95347.0,95344.0,0.00048533]
[1768677501940,0.05244058,95346.0,95344.0,0.00048533]
[1768677502161,0.05244113,95345.0,95344.0,0.00048533]
[1768677502569,0.05244113,95345.0,95344.0,0.03822376]
[1768677502871,0.06292857,95347.0,95344.0,0.00048533]
[1768677503278,0.010488,95347.0,95344.0,0.00048533]
[1768677503478,0.05244064,95346.0,95344.0,0.00048533]
[1768677503657,0.010488,95347.0,95344.0,0.00048533]
[1768677504996,0.010488,95347.0,95344.0,0.01097366]
[1768677505620,0.01048789,95348.0,95345.0,0.01048822]
[1768677505830,0.01048789,95348.0,95347.0,0.03773812]
[1768677507421,0.01048789,95348.0,95345.0,0.01048822]
[1768677507649,0.01048789,95348.0,95344.0,0.06341526]
[1768677508448,0.01048789,95348.0,95344.0,0.01097366]
[1768677508656,0.01048789,95348.0,95344.0,0.06341523]
[1768677508853,0.01048789,95348.0,95344.0,0.01097366]
[1768677509064,0.01048789,95348.0,95344.0,0.0634153]
[1768677509265,0.01048789,95348.0,95344.0,0.01097366]
[1768677511264,0.01048789,95348.0,95345.0,0.01048822]
[1768677511466,0.01048789,95348.0,95345.0,0.06292932]
[1768677511673,0.01048778,95349.0,95345.0,0.06292932]
[1768677511844,0.06292671,95349.0,95348.0,0.03773966]
[1768677512866,0.01048767,95350.0,95348.0,0.03773966]
[1768677514975,0.01048756,95351.0,95348.0,0.03773966]
[1768677517308,0.01048756,95351.0,95349.0,0.03773966]
[1768677520653,0.01048811,95346.0,95340.0,0.07576313]
[1768677520851,0.01048833,95344.0,95341.0,0.01048866]
[1768677521050,0.01048811,95346.0,95342.0,0.01048855]
[1768677521833,0.01048811,95346.0,95342.0,0.06293115]
[1768677522256,0.01048811,95346.0,95343.0,0.01048844]
[1768677522838,0.01048789,95348.0,95344.0,0.01048833]
[1768677524772,0.010488,95347.0,95343.0,0.01048844]
[1768677524998,0.010488,95347.0,95344.0,0.01048833]
[1768677529457,0.01048789,95348.0,95344.0,0.0629299]
[1768677530263,0.010488,95347.0,95343.0,0.01048844]
[1768677530489,0.010488,95347.0,95344.0,0.01048833]
[1768677535410,0.010488,95347.0,95344.0,0.01029306]
[1768677536392,0.010488,95347.0,95344.0,0.06273474]
[1768677536613,0.010488,95347.0,95344.0,0.01029306]
[1768677538680,0.01048789,95348.0,95345.0,0.01048822]
[1768677540914,0.01048789,95348.0,95345.0,0.06292935]
[1768677541120,0.06292878,95346.0,95341.0,0.01048866]
[1768677541320,0.06292874,95346.0,95342.0,0.01048855]
[1768677541527,0.01048822,95345.0,95342.0,0.01048855]
[1768677541725,0.01048822,95345.0,95341.0,0.01048866]
[1768677542183,0.06292938,95345.0,95341.0,0.01048866]
[1768677542964,0.01048822,95345.0,95341.0,0.01048866]
[1768677544466,0.01048811,95346.0,95342.0,0.0629313]
[1768677544666,0.01048811,95346.0,95343.0,0.01004993]
[1768677550578,0.01048811,95346.0,95344.0,0.03775825]
[1768677550994,0.01048811,95346.0,95344.0,0.03756307]
[1768677551198,0.010488,95347.0,95344.0,0.03736789]
[1768677551397,0.010488,95347.0,95344.0,0.03717272]
[1768677551602,0.010488,95347.0,95344.0,0.03697755]
[1768677552680,0.010488,95347.0,95344.0,0.03678227]
[1768677552846,0.010488,95347.0,95344.0,0.03658708]
[1768677553062,0.010488,95347.0,95343.0,0.06249212]
[1768677554880,0.010488,95347.0,95344.0,0.01048833]
[1768677561113,0.01048789,95348.0,95345.0,0.01048822]
[1768677561279,0.00839023,95348.0,95345.0,0.01048822]
[1768677561496,0.01048778,95349.0,95346.0,0.01048811]
[1768677562720,0.06292681,95349.0,95345.0,0.01048822]
[1768677563399,0.01048778,95349.0,95345.0,0.01048822]
[1768677565680,0.06292696,95349.0,95345.0,0.01048822]
[1768677565792,0.01048789,95348.0,95344.0,0.01048833]
[1768677565992,0.01048811,95346.0,95343.0,0.01004993]
[1768677567268,0.01048811,95346.0,95341.0,0.01048866]
[1768677567471,0.010488,95347.0,95343.0,0.01048844]
[1768677567946,0.010488,95347.0,95341.0,0.06709987]
[1768677568122,0.01048811,95346.0,95343.0,0.01048844]
[1768677568748,0.06292935,95345.0,95341.0,0.01048866]
[1768677569157,0.01048822,95345.0,95342.0,0.01048855]
[1768677569857,0.01048811,95346.0,95342.0,0.01048855]
[1768677570071,0.06292935,95345.0,95341.0,0.01048866]
[1768677570283,0.01048822,95345.0,95341.0,0.01048866]
[1768677570592,0.01048844,95343.0,95340.0,0.06709932]
[1768677570720,0.01048822,95345.0,95341.0,0.01048866]
[1768677570915,0.05244317,95342.0,95336.0,0.05244568]
[1768677571165,0.05244333,95341.0,95334.0,0.06293563]
[1768677571312,0.06293199,95341.0,95340.0,0.03146852]
[1768677571517,0.01048877,95340.0,95336.0,0.01048921]
[1768677571737,0.01048877,95340.0,95335.0,0.01048932]
[1768677571738,0.01048899,95338.0,95337.0,0.03146898]
[1768677572220,0.01048877,95340.0,95336.0,0.06293497]
[1768677572418,0.01048877,95340.0,95337.0,0.0104891]
[1768677572851,0.01048866,95341.0,95337.0,0.06293462]
[1768677573042,0.01048866,95341.0,95338.0,0.01048899]
[1768677573262,0.01048866,95342.0,95338.0,0.0629339]
[1768677574473,0.01048866,95342.0,95339.0,0.01048888]
[1768677574742,1.1e-07,95342.0,95339.0,0.06293327]
[1768677575153,1.1e-07,95342.0,95339.0,0.01048888]
[1768677576184,1.1e-07,95342.0,95339.0,0.06293322]
[1768677577868,1.1e-07,95342.0,95339.0,0.01048888]
[1768677578420,0.01048866,95342.0,95338.0,0.01048899]
[1768677578621,0.01048866,95342.0,95338.0,0.06293394]
[1768677579256,0.06293152,95342.0,95338.0,0.01048899]
[1768677579484,0.06293152,95342.0,95338.0,0.01029386]
[1768677579684,0.01048866,95341.0,95338.0,0.01029386]
[1768677580970,0.0104891,95337.0,95331.0,0.12708]
[1768677581167,0.01048932,95335.0,95332.0,0.01048965]
[1768677583827,0.05245048,95328.0,95327.0,1e-08]
[1768677584029,0.24303331,95328.0,95325.0,1e-08]
[1768677584262,0.05245158,95326.0,95325.0,1e-08]
[1768677584889,0.05245105,95327.0,95325.0,1e-08]
[1768677585092,0.05245158,95326.0,95325.0,0.00014161]
[1768677585301,0.06294244,95326.0,95325.0,0.00014161]
[1768677587446,0.06294244,95326.0,95319.0,0.05285538]
[1768677587447,0.01049075,95322.0,95319.0,0.01089108]
[1768677587599,0.01049075,95322.0,95319.0,0.01093825]
[1768677588426,0.01049064,95323.0,95319.0,0.06339364]
[1768677588636,0.01049064,95323.0,95319.0,0.01093825]
[1768677588982,0.01049075,95322.0,95319.0,0.01093825]
[1768677589959,0.0629446,95322.0,95319.0,0.00044717]
[1768677591543,0.01049075,95322.0,95319.0,0.00044717]
[1768677592630,0.01049075,95322.0,95319.0,0.000252]
[1768677592969,0.0629446,95322.0,95319.0,0.000252]
[1768677593370,0.01049075,95322.0,95319.0,0.000252]
[1768677593580,0.01049075,95322.0,95319.0,5.685e-05]
[1768677594144,0.06294458,95322.0,95319.0,5.685e-05]
[1768677595581,0.01049075,95322.0,95319.0,5.685e-05]
[1768677596259,0.01049075,95322.0,95319.0,0.01054793]
[1768677596578,0.02098194,95323.0,95319.0,0.06300333]
[1768677597143,0.02098194,95323.0,95320.0,0.01049097]
[1768677598239,0.02098194,95323.0,95320.0,0.01029584]
[1768677598684,0.02098194,95323.0,95319.0,0.01054793]
[1768677598882,0.01049075,95322.0,95319.0,0.01054793]
[1768677599095,0.06294471,95322.0,95319.0,5.685e-05]
[1768677600015,0.05245437,95321.0,95319.0,5.685e-05]
[1768677601128,0.01049075,95322.0,95319.0,5.685e-05]
[1768677601343,0.06294467,95322.0,95319.0,5.685e-05]
[1768677602482,0.01049075,95322.0,95319.0,5.685e-05]
[1768677602700,0.01049031,95326.0,95322.0,0.05245378]
[1768677602916,0.01049031,95326.0,95321.0,0.05245413]
[1768677603140,0.0104913,95325.0,95320.0,0.01049097]
[1768677603580,0.12708,95328.0,95325.0,0.0524516]
[1768677603797,0.12708,95328.0,95320.0,0.01049097]
[1768677604017,0.03147542,95327.0,95323.0,0.05245282]
[1768677604232,0.12708,95328.0,95323.0,0.05245282]
[1768677604913,0.12708,95328.0,95324.0,0.05245262]
[1768677605352,0.12708,95328.0,95325.0,0.01049042]
[1768677606939,0.12708,95328.0,95326.0,0.05245156]
[1768677607176,0.12708,95328.0,95325.0,0.01049042]
[1768677607405,0.12708,95328.0,95325.0,0.06294211]
[1768677607824,0.13757009,95328.0,95323.0,0.06294356]
[1768677608246,0.13757009,95328.0,95324.0,0.01049053]
[1768677608646,0.0104902,95327.0,95323.0,0.01049064]
[1768677608861,0.06294134,95327.0,95323.0,0.01049064]
[1768677609067,0.06294203,95326.0,95321.0,0.06294467]
[1768677609712,0.01049042,95325.0,95321.0,0.01049086]
[1768677609869,0.01049031,95326.0,95322.0,0.13408609]
[1768677610081,0.01049031,95326.0,95323.0,0.07114162]
[1768677610285,0.01049031,95326.0,95322.0,0.06294447]
[1768677610463,0.01049053,95324.0,95321.0,0.01049086]
[1768677610664,0.01049053,95324.0,95320.0,0.01049097]
[1768677610665,0.01049064,95323.0,95320.0,0.01049097]
[1768677610890,0.01049053,95324.0,95321.0,0.01049086]
[1768677611097,0.01049042,95325.0,95321.0,0.01049086]
[1768677611745,0.01049031,95326.0,95321.0,0.04063169]
[1768677612063,0.01049031,95326.0,95319.0,5.685e-05]
[1768677612064,0.05245488,95320.0,95319.0,5.685e-05]
[1768677612196,0.02098629,95327.0,95319.0,0.07119847]
[1768677612436,0.01049053,95324.0,95320.0,0.01049097]
[1768677612625,0.12712,95323.0,95320.0,0.01049097]
[1768677613158,0.12712,95323.0,95322.0,0.05245378]
[1768677613390,0.12712,95323.0,95321.0,0.05245425]
[1768677613742,0.12712,95323.0,95320.0,0.01049097]
[1768677613993,0.12712,95323.0,95320.0,0.06294574]
[1768677614769,0.12712,95323.0,95320.0,0.01049097]
[1768677614976,0.12712,95323.0,95319.0,0.01054793]
[1768677615180,0.13761064,95323.0,95320.0,0.01049097]
[1768677621399,0.13761064,95323.0,95320.0,0.01029582]
[1768677622471,0.19006397,95323.0,95319.0,0.04830167]
[1768677622917,0.13761064,95323.0,95319.0,0.04830167]
[1768677623136,0.13761064,95323.0,95320.0,0.01049097]
[1768677623358,0.12712,95323.0,95320.0,0.0629458]
[1768677625165,0.12712,95323.0,95321.0,0.05245421]
[1768677625384,0.12712,95323.0,95321.0,0.05237568]
[1768677625848,0.12712,95323.0,95321.0,0.05229714]
[1768677626078,0.12712,95323.0,95320.0,0.06294571]
[1768677626308,0.12712,95323.0,95322.0,0.0377559]
[1768677627426,0.12712,95323.0,95320.0,0.06294571]
[1768677627879,0.12712,95323.0,95322.0,0.03775571]
[1768677629201,0.12712,95323.0,95320.0,0.01049097]
[1768677629345,0.12712,95323.0,95320.0,0.01038996]
[1768677629549,0.13761064,95323.0,95320.0,0.01038996]
[1768677630181,0.19006387,95323.0,95320.0,0.01038996]
[1768677630610,0.19006387,95323.0,95318.0,0.06274588]
[1768677630900,0.13761064,95323.0,95318.0,0.06274588]
[1768677631334,0.06294463,95322.0,95315.0,0.01049152]
[1768677631549,0.01049097,95320.0,95317.0,0.0104913]
[1768677631747,0.01049086,95321.0,95318.0,0.01049119]
[1768677632290,0.01049075,95322.0,95319.0,0.01049108]
[1768677633411,0.01049075,95322.0,95318.0,0.01049119]
[1768677634756,0.01049075,95322.0,95319.0,0.01049108]
[1768677635404,0.01049075,95322.0,95319.0,0.01029594]
[1768677636420,0.01049075,95322.0,95319.0,0.01010082]
[1768677636627,0.13761064,95323.0,95320.0,0.01049097]
[1768677638476,0.12712,95323.0,95320.0,0.06294545]
[1768677640329,0.12712,95323.0,95320.0,0.01049097]
[1768677640532,0.13761064,95323.0,95320.0,0.01049097]
[1768677643544,0.12712,95323.0,95320.0,0.01049097]
[1768677644186,0.12712,95323.0,95320.0,0.06294556]
[1768677644392,0.12712,95323.0,95320.0,0.01049097]
[1768677644593,0.12712,95323.0,95320.0,0.06294582]
[1768677646791,0.12712,95323.0,95320.0,0.01049097]
[1768677647317,0.12712,95323.0,95320.0,0.06294571]
[1768677648005,0.12712,95323.0,95320.0,0.01049097]
[1768677648197,0.13761064,95323.0,95319.0,0.01010082]
[1768677648342,0.19006434,95323.0,95319.0,0.01010082]
[1768677649078,0.13761064,95323.0,95320.0,0.01049097]
[1768677649563,0.13761064,95323.0,95319.0,0.06294643]
[1768677650470,0.13761064,95323.0,95319.0,0.03685535]
[1768677650798,0.13761064,95323.0,95318.0,0.06294714]
[1768677651228,0.13761064,95323.0,95319.0,0.01049108]
[1768677652814,0.13761064,95323.0,95319.0,0.01029601]
[1768677653234,0.01049075,95322.0,95319.0,0.01029601]
[1768677653677,0.01049075,95322.0,95319.0,0.01010094]
[1768677653851,0.01049075,95322.0,95318.0,0.06294703]
[1768677653852,0.01049075,95322.0,95318.0,0.01029613]
[1768677654054,0.0629447,95322.0,95318.0,0.01029613]
[1768677654260,0.01049075,95322.0,95319.0,0.01049108]
[1768677655462,0.13761064,95323.0,95319.0,0.0629465]
[1768677656462,0.13761064,95323.0,95318.0,0.01029613]
[1768677656463,0.06294453,95322.0,95318.0,0.01029613]
[1768677657590,0.01049086,95321.0,95318.0,0.01029613]
[1768677660591,0.01049097,95320.0,95317.0,0.0104913]
[1768677660953,0.01049086,95321.0,95317.0,0.0104913]
[1768677661207,0.01049086,95321.0,95318.0,0.01049119]
[1768677662000,0.12712,95323.0,95319.0,0.01049108]
[1768677662384,0.12712,95323.0,95320.0,0.05245484]
[1768677663237,0.12712,95323.0,95320.0,0.06294581]
[1768677666544,0.12712,95323.0,95320.0,0.01049097]
[1768677666645,0.01049075,95322.0,95318.0,0.01049119]
[1768677667059,0.01049075,95322.0,95319.0,0.01049108]
[1768677669090,0.13761064,95323.0,95319.0,0.06294637]
[1768677670149,0.13761064,95323.0,95319.0,0.01049108]
[1768677670858,0.13761064,95323.0,95320.0,0.01049097]
[1768677672705,0.12712,95323.0,95320.0,0.01049097]
[1768677673315,0.12702928,95323.0,95320.0,0.01049097]
[1768677674320,0.13751992,95323.0,95320.0,0.01049097]
[1768677675798,0.12702928,95323.0,95320.0,0.01049097]
[1768677676925,0.12702928,95323.0,95319.0,0.04725502]
[1768677677100,0.12702928,95323.0,95318.0,0.06294705]
[1768677677333,0.12702928,95323.0,95319.0,0.05245496]
[1768677677684,0.01049075,95322.0,95318.0,0.01049119]